bitfinex-derivatives/quotes_BNBF0:USTF0_20250330
["timestamp","ask_amount","ask_price","bid_price","bid_amount"]
[1743348410939,7.523,604.2,603.67,0.33130683]
[1743348452971,7.523,604.2,603.67,2.81346329]
[1743348454376,7.523,604.2,603.72,2.48215646]
[1743348454576,7.523,604.2,603.73,0.33127391]
[1743348455580,7.523,604.2,603.75,2.48215646]
[1743348457378,7.523,604.2,603.73,0.33127391]
[1743348459279,7.523,604.2,603.76,2.48215646]
[1743348459871,7.523,604.2,603.77,0.33125196]
[1743348462884,7.523,604.2,603.83,2.48215646]
[1743348464579,7.523,604.2,603.81,2.48215646]
[1743348464884,7.523,604.2,603.81,2.81338648]
[1743348466882,7.523,604.2,603.81,0.33123002]
[1743348505711,7.523,604.2,603.8,0.2880592]
[1743348507911,7.523,604.2,603.35,2.48215646]
[1743348508113,7.523,604.2,603.36,0.33147706]
[1743348508310,7.523,604.2,603.8,0.28812956]
[1743348508513,7.523,604.2,603.36,0.33147706]
[1743348508914,7.523,604.2,603.8,0.28812837]
[1743348509316,7.523,604.2,603.36,0.33147706]
[1743348509512,7.523,604.2,603.8,0.28812837]
[1743348509918,7.523,604.2,603.36,0.33147706]
[1743348510113,7.523,604.2,603.8,0.28812837]
[1743348510620,7.523,604.2,603.36,0.33147706]
[1743348510818,7.523,604.2,603.8,0.28812837]
[1743348511215,7.523,604.2,603.4,2.48215646]
[1743348511416,7.523,604.2,603.8,0.28812837]
[1743348511814,7.523,604.2,603.41,0.33144959]
[1743348513221,7.523,604.2,603.42,0.28812956]
[1743348513418,7.523,604.2,603.43,0.3314386]
[1743348540341,7.523,604.2,603.43,2.81359506]
[1743348541241,7.50967424,604.2,603.43,2.81359506]
[1743348541748,7.50967424,604.2,603.43,0.3314386]
[1743348541948,1.21286012,604.19,603.43,0.3314386]
[1743348542643,1.47567424,604.2,603.43,0.3314386]
[1743348545149,3.30967424,604.2,603.43,0.3314386]
[1743348545651,5.15367424,604.2,603.43,0.3314386]
[1743348545851,8.68367424,604.2,603.43,0.3314386]
[1743348554349,8.68367424,604.2,603.43,0.3174576]
[1743348554554,1.51905453,604.19,603.43,0.3174576]
[1743348554756,1.51903194,604.18,603.43,0.3174576]
[1743348554953,8.68367424,604.2,603.43,0.3174576]
[1743348555153,1.51902827,604.19,603.43,0.3174576]
[1743348555351,1.51902827,604.18,603.43,0.3174576]
[1743348555547,1.51902827,604.17,603.43,0.3174576]
[1743348555755,8.68367424,604.2,603.43,0.3174576]
[1743348555955,1.51925261,604.19,603.43,0.3174576]
[1743348556154,1.51925261,604.18,603.43,0.3174576]
[1743348556356,1.51925261,604.17,603.43,0.3174576]
[1743348556656,1.21288015,604.17,603.43,0.3174576]
[1743348557157,1.21288015,604.16,603.43,0.3174576]
[1743348557557,1.51914927,604.15,603.43,0.3174576]
[1743348557857,4.9211022,604.14,603.43,0.3174576]
[1743348558060,4.9211022,604.13,603.43,0.3174576]
[1743348558254,4.9211022,604.12,603.43,0.3174576]
[1743348558455,4.9211022,604.11,603.43,0.3174576]
[1743348558656,4.9211022,604.1,603.43,0.3174576]
[1743348558852,4.9211022,604.09,603.43,0.3174576]
[1743348559057,4.9211022,604.08,603.43,0.3174576]
[1743348559258,4.91962036,604.07,603.43,0.3174576]
[1743348559453,1.51914927,604.06,603.43,0.3174576]
[1743348559657,1.51914927,604.05,603.43,0.3174576]
[1743348559859,1.51914927,604.04,603.43,0.3174576]
[1743348560159,1.51914927,604.03,603.43,0.3174576]
[1743348560358,1.51914927,604.02,603.43,0.3174576]
[1743348560560,1.21288015,604.03,603.43,0.3174576]
[1743348560762,1.5170696,604.02,603.43,0.3174576]
[1743348560956,1.21288015,604.03,603.43,0.3174576]
[1743348561257,1.517054,604.02,603.42,0.28825963]
[1743348561460,4.948841,604.17,603.42,0.28825963]
[1743348561660,0.66227196,604.19,603.42,0.28825963]
[1743348561661,4.91292686,604.16,603.42,0.28825963]
[1743348561857,4.91292686,604.15,603.42,0.28825963]
[1743348562060,4.91292686,604.14,603.42,0.28825963]
[1743348562262,4.91292686,604.13,603.42,0.28825963]
[1743348562562,4.91316272,604.12,603.42,0.28825963]
[1743348562764,4.91316272,604.11,603.42,0.28825963]
[1743348563060,7.208,604.2,603.42,0.28825963]
[1743348563061,2.72759005,604.1,603.42,0.28825963]
[1743348563259,1.5165817,604.09,603.42,0.28825963]
[1743348563455,1.5165817,604.08,603.42,0.28825963]
[1743348563660,1.21100835,604.1,603.42,0.28825963]
[1743348563661,1.5165817,604.07,603.42,0.28825963]
[1743348563962,1.21100835,604.1,603.42,0.28825963]
[1743348564162,1.5165307,604.09,603.42,0.28825963]
[1743348564462,1.21100835,604.06,603.42,0.28825963]
[1743348565059,1.93707655,604.17,602.97,2.48215646]
[1743348565262,1.51651828,604.16,602.99,0.33168045]
[1743348565459,1.51651828,604.15,603.42,0.28824411]
[1743348565660,1.51651828,604.14,602.99,0.33168045]
[1743348565857,1.21084986,604.15,603.06,2.48215646]
[1743348566054,1.51675416,604.14,603.07,0.33163646]
[1743348566259,1.92,604.14,603.07,0.33163646]
[1743348566460,1.335,604.13,603.07,0.61985909]
[1743348567463,1.335,604.13,603.07,3.10201555]
[1743348568263,1.335,604.13,603.07,2.81379292]
[1743348568660,1.335,604.13,603.07,3.10201674]
[1743348568862,1.335,604.13,603.07,0.61986028]
[1743348570759,1.21147927,604.12,603.07,0.61986028]
[1743348571163,1.335,604.13,603.07,0.33163646]
[1743348571558,1.335,604.13,603.07,0.61987222]
[1743348574068,1.335,604.13,603.07,0.33163646]
[1743348574570,1.335,604.13,603.07,0.61986267]
[1743348575971,1.84,604.12,603.07,0.61986267]
[1743348576370,1.84,604.12,603.09,2.48215646]
[1743348576565,1.84,604.12,603.1,0.33161996]
[1743348578166,1.732,604.11,603.1,0.33161996]
[1743348579273,1.732,604.11,603.19,2.48215646]
[1743348579472,1.732,604.11,603.2,0.33156498]
[1743348581473,1.732,604.11,603.25,2.48215646]
[1743348581967,1.732,604.11,603.26,0.331532]
[1743348583974,1.732,604.11,603.26,2.81368846]
[1743348587377,1.732,604.11,603.26,0.331532]
[1743348587583,1.196,604.1,603.26,0.331532]
[1743348588284,2.061,604.09,603.26,0.331532]
[1743348595693,2.061,604.09,603.26,2.81368846]
[1743348596894,2.061,604.09,603.36,2.48215646]
[1743348597094,2.061,604.09,603.37,0.33147156]
[1743348597294,1.824,604.08,603.37,0.33147156]
[1743348597994,3.057,604.08,603.37,0.33147156]
[1743348598691,3.057,604.08,603.38,2.48215646]
[1743348598892,3.057,604.08,603.38,2.81362253]
[1743348599989,4.895,604.08,603.38,2.81362253]
[1743348603996,4.895,604.08,603.38,0.33146607]
[1743348606398,4.895,604.08,603.38,2.81362253]
[1743348607498,4.895,604.08,603.38,0.33146607]
[1743348612100,6.113,604.08,603.38,0.33146607]
[1743348613203,7.421,604.08,603.46,2.48215646]
[1743348614602,7.421,604.08,603.47,0.33141664]
[1743348614803,7.421,604.08,603.49,2.48215646]
[1743348616008,7.421,604.08,603.52,2.48215646]
[1743348617304,7.421,604.08,603.53,2.48215646]
[1743348619001,7.421,604.08,603.52,2.48215646]
[1743348620510,7.421,604.08,603.47,0.61953785]
[1743348622203,7.421,604.08,603.47,0.33141664]
[1743348622611,7.421,604.08,603.47,0.61956051]
[1743348625207,7.421,604.08,603.47,0.33141664]
[1743348625413,7.421,604.08,603.47,0.61956767]
[1743348628112,7.421,604.08,603.47,0.33141664]
[1743348628511,7.421,604.08,603.47,0.61956767]
[1743348631320,7.421,604.08,603.47,0.33141664]
[1743348631615,7.421,604.08,603.47,0.61956051]
[1743348634217,7.421,604.08,603.47,0.33141664]
[1743348634417,7.421,604.08,603.47,0.61958199]
[1743348637124,7.421,604.08,603.47,0.33141664]
[1743348637722,7.421,604.08,603.47,0.61964046]
[1743348640122,7.421,604.08,603.47,0.33141664]
[1743348640524,7.421,604.08,603.47,0.61959631]
[1743348640919,1.52182641,604.07,603.47,0.61959631]
[1743348641122,1.52182641,604.06,603.47,0.61959631]
[1743348641315,1.52182641,604.05,603.47,0.61959631]
[1743348641523,1.52182641,604.04,603.47,0.61959631]
[1743348641723,1.52124715,604.03,603.47,0.61959631]
[1743348641927,1.21499671,604.05,603.47,0.61959631]
[1743348642127,1.52122192,604.04,603.47,0.61959631]
[1743348642327,1.52122192,604.03,603.47,0.61959631]
[1743348642526,1.52122192,604.02,603.47,0.28817967]
[1743348642724,1.52122192,604.01,603.47,0.28817967]
[1743348642927,1.52035038,604.0,603.47,0.28817967]
[1743348643127,1.21402667,604.02,602.84,2.48215646]
[1743348643128,1.52035038,603.99,602.84,2.48215646]
[1743348643323,1.52035038,603.98,603.41,0.28832173]
[1743348643529,1.52035038,603.97,603.41,0.28832173]
[1743348643828,1.52035038,603.96,602.84,2.48215646]
[1743348644029,1.52035038,603.95,602.85,0.33175748]
[1743348644225,2.75002667,603.95,602.85,0.33175748]
[1743348645435,1.536,603.95,602.85,0.33175748]
[1743348645634,1.536,603.95,602.86,0.28833964]
[1743348645835,3.34,603.95,602.87,0.33174647]
[1743348647438,5.174,603.95,602.87,0.33174647]
[1743348660839,7.12,603.95,602.87,0.33174647]
[1743348668647,7.12,603.95,602.88,2.48215646]
[1743348669244,7.12,603.95,602.9,0.33172997]
[1743348670444,7.12,603.95,602.91,2.48215646]
[1743348670749,7.12,603.95,602.93,0.33171346]
[1743348671745,7.12,603.95,603.04,2.48215646]
[1743348672148,7.12,603.95,603.05,0.33164745]
[1743348674354,7.12,603.95,603.08,2.48215646]
[1743348674554,7.12,603.95,603.09,0.33162546]
[1743348675853,9.03,603.95,603.09,0.33162546]
[1743348676458,9.03,603.95,603.09,2.81378192]
[1743348678459,9.03,603.95,603.11,2.48215646]
[1743348678859,9.03,603.95,603.12,0.33160896]
[1743348680160,9.03,603.95,603.2,2.48215646]
[1743348680360,9.03,603.95,603.21,0.33155949]
[1743348681761,9.03,603.95,603.23,2.48215646]
[1743348682154,9.03,603.95,603.24,0.331543]
[1743348684660,9.03,603.95,603.34,2.48215646]
[1743348685664,9.03,603.95,603.24,0.331543]
[1743348700471,1.21181943,603.94,603.24,0.331543]
[1743348700771,1.21181943,603.93,603.24,0.331543]
[1743348701570,3.856,603.95,603.24,0.331543]
[1743348702371,1.21172266,603.94,603.24,0.331543]
[1743348703069,3.856,603.95,603.24,0.331543]
[1743348703668,5.711,603.95,603.24,0.331543]
[1743348703870,7.189,603.95,603.24,0.331543]
[1743348704667,1.2114019,603.94,603.24,0.331543]
[1743348705073,9.019,603.95,603.24,0.331543]
[1743348706775,1.21166345,603.94,603.24,0.331543]
[1743348707471,9.019,603.95,603.24,0.331543]
[1743348709171,1.21156681,603.94,603.24,0.331543]
[1743348710068,7.073,603.95,603.24,0.331543]
[1743348710272,1.51730967,603.94,603.24,0.331543]
[1743348710474,7.073,603.95,603.24,0.331543]
[1743348710672,1.21145482,603.93,603.24,0.331543]
[1743348711576,1.21145482,603.92,603.24,0.331543]
[1743348712472,1.659,603.91,603.24,0.331543]
[1743348720782,1.439,603.9,603.24,0.331543]
[1743348727088,1.817,603.89,603.24,0.331543]
[1743348735295,2.087,603.88,603.24,0.331543]
[1743348746001,1.22,603.87,603.24,0.331543]
[1743348750601,1.803,603.86,603.24,0.331543]
[1743348751603,2.032,603.85,603.24,0.331543]
[1743348757806,1.901,603.84,603.24,0.331543]
[1743348767014,1.817,603.83,603.24,0.331543]
[1743348768217,1.817,603.83,603.39,2.48215646]
[1743348768421,1.817,603.83,603.4,0.33145508]
[1743348775023,3.513,603.83,603.4,0.33145508]
[1743348776518,5.463,603.83,603.4,0.33145508]
[1743348783330,5.463,603.83,603.4,2.81361154]
[1743348784531,5.463,603.83,603.4,0.33145508]
[1743348790731,7.022,603.83,603.4,0.33145508]
[1743348792533,7.022,603.83,603.52,2.48215646]
[1743348792934,5.205,603.83,603.52,2.48215646]
[1743348793637,5.205,603.83,603.53,0.33138369]
[1743348816352,5.205,603.83,603.54,2.48215646]
[1743348816555,5.205,603.83,603.55,0.33137271]
[1743348819456,5.205,603.83,603.57,2.48215646]
[1743348819757,5.205,603.83,603.58,0.33135624]
[1743348820156,1.64755503,605.05,603.58,0.33135624]
[1743348820362,9.08156606,605.04,603.58,0.33135624]
[1743348820562,7.93945708,605.03,603.58,0.33135624]
[1743348820762,7.93946254,605.02,603.58,0.33135624]
[1743348820955,7.93946456,605.01,603.58,0.33135624]
[1743348821155,7.60889152,605.0,603.58,0.33135624]
[1743348821457,7.11272775,604.99,603.58,0.33135624]
[1743348821661,7.11272775,604.98,603.58,0.33135624]
[1743348821863,7.11272775,604.97,603.58,0.33135624]
[1743348822061,7.11272775,604.96,603.58,0.33135624]
[1743348822262,7.11272775,604.95,603.58,0.33135624]
[1743348822563,7.11272775,604.94,603.58,0.33135624]
[1743348822765,5.5643693,604.93,603.58,0.33135624]
[1743348822964,4.90391117,604.92,603.69,2.48215646]
[1743348823162,4.90391117,604.91,603.7,0.33129037]
[1743348823463,4.90391117,604.9,603.7,0.33129037]
[1743348823665,4.90391117,604.89,603.7,0.33129037]
[1743348823866,4.90391117,604.88,603.7,0.33129037]
[1743348824067,4.90391117,604.87,603.7,0.33129037]
[1743348824261,1.51383663,604.86,603.7,0.33129037]
[1743348824464,1.51383663,604.85,603.7,0.33129037]
[1743348824664,1.51383663,604.84,603.7,0.33129037]
[1743348824866,1.51383663,604.83,603.71,2.48215646]
[1743348825060,1.51383663,604.82,603.72,0.3312794]
[1743348825265,1.51383663,604.81,603.72,0.3312794]
[1743348825462,1.51383663,604.8,603.72,0.3312794]
[1743348825661,1.20817206,604.8,603.72,0.3312794]
[1743348825866,1.51413476,604.79,603.72,0.3312794]
[1743348826162,1.51413476,604.78,603.72,0.3312794]
[1743348826366,1.20817206,604.79,603.72,0.3312794]
[1743348826567,1.514268,604.78,603.72,0.3312794]
[1743348826771,1.51426901,604.77,603.72,0.3312794]
[1743348826967,1.51426901,604.76,603.72,0.3312794]
[1743348827165,1.51426901,604.75,603.72,0.3312794]
[1743348827361,1.51426901,604.74,603.72,0.3312794]
[1743348827567,1.20817206,604.74,603.72,0.3312794]
[1743348828370,1.20817206,604.73,603.72,0.3312794]
[1743348828867,3.39130495,604.84,603.72,0.3312794]
[1743348829069,4.90575105,604.83,603.72,0.3312794]
[1743348829264,4.90575105,604.82,603.72,0.3312794]
[1743348829472,4.90575105,604.81,603.72,0.3312794]
[1743348829764,1.5144461,604.8,603.72,0.3312794]
[1743348829968,1.5144461,604.79,603.72,0.3312794]
[1743348830164,1.5144461,604.78,603.72,0.3312794]
[1743348830363,1.5144461,604.77,603.72,0.3312794]
[1743348830564,1.5144461,604.76,603.72,0.3312794]
[1743348830764,1.51476317,604.75,603.72,0.3312794]
[1743348830967,1.51476317,604.74,603.72,2.81343586]
[1743348831167,1.20898681,604.76,603.72,2.81343586]
[1743348831363,1.553,604.73,603.72,2.81343586]
[1743348832969,1.51513347,604.72,603.72,2.81343586]
[1743348833171,1.51513347,604.72,603.72,0.3312794]
[1743348833172,1.20947296,604.72,603.72,0.3312794]
[1743348834172,2.72538436,604.71,603.74,2.48215646]
[1743348834373,1.20947296,604.71,603.74,2.48215646]
[1743348834971,1.20947296,604.7,603.74,2.48215646]
[1743348835471,1.20947296,604.7,603.72,0.3312794]
[1743348835472,1.20947296,604.7,603.75,2.48215646]
[1743348835671,1.20947296,604.69,603.75,2.48215646]
[1743348836071,1.51746245,604.68,603.75,2.48215646]
[1743348836274,1.20947296,604.69,603.75,2.48215646]
[1743348836476,1.51751888,604.68,603.75,2.48215646]
[1743348836670,1.553,604.73,603.75,2.48215646]
[1743348836872,1.51751876,604.72,603.75,2.48215646]
[1743348837072,1.51751876,604.71,603.85,2.48215646]
[1743348837371,1.51751876,604.7,603.85,2.48215646]
[1743348837571,1.51751876,604.69,603.85,2.48215646]
[1743348837775,1.51751876,604.68,603.85,2.48215646]
[1743348838075,1.51751876,604.67,603.85,2.48215646]
[1743348838269,1.51751876,604.66,603.85,2.48215646]
[1743348838472,1.51751876,604.65,603.85,2.48215646]
[1743348838668,4.92066491,604.64,603.85,2.48215646]
[1743348838871,7.13720502,604.63,603.85,2.48215646]
[1743348839068,7.13720502,604.62,603.85,2.48215646]
[1743348839272,7.13720502,604.61,603.85,2.48215646]
[1743348839473,1.21138451,604.65,603.85,2.48215646]
[1743348839474,7.13720502,604.6,603.85,2.48215646]
[1743348839778,7.63356322,604.59,603.76,0.28797458]
[1743348839973,7.13720502,604.58,603.76,0.28797458]
[1743348840172,7.13720502,604.57,603.76,0.28797458]
[1743348840468,7.13720502,604.56,603.76,0.28797458]
[1743348840672,7.13720502,604.55,603.76,0.28797458]
[1743348840874,4.92066491,604.54,603.76,0.28797458]
[1743348841171,4.92066491,604.53,603.72,0.3312794]
[1743348841376,4.92066491,604.52,603.72,0.3312794]
[1743348841575,3.9489804,604.51,603.76,0.28802821]
[1743348841776,2.041,604.52,603.76,0.28802821]
[1743348841777,1.51751876,604.5,603.76,0.28802821]
[1743348841971,1.51751876,604.49,603.76,0.28802821]
[1743348842175,1.51751876,604.48,603.76,0.28802821]
[1743348842373,1.51751876,604.47,603.76,0.28802821]
[1743348842570,1.51751876,604.46,603.76,0.28802821]
[1743348842772,1.51751876,604.45,603.76,0.28802821]
[1743348842974,1.51751876,604.44,603.76,0.28802821]
[1743348843277,1.51751876,604.43,603.76,0.28802821]
[1743348843472,1.51751876,604.42,603.76,0.28802821]
[1743348843676,1.21138451,604.46,603.76,0.28802821]
[1743348843978,1.21138451,604.41,603.76,0.28802821]
[1743348844171,1.21138451,604.41,603.72,0.3312794]
[1743348844575,1.622,604.4,603.73,0.28807709]
[1743348847475,1.622,604.4,603.72,0.3312794]
[1743348847679,1.622,604.4,603.73,0.2880449]
[1743348847880,1.61,604.39,603.73,0.2880449]
[1743348850283,1.61,604.39,603.72,0.3312794]
[1743348850684,1.61,604.39,603.73,0.28804609]
[1743348853182,1.61,604.39,603.72,0.3312794]
[1743348853688,1.61,604.39,603.73,0.2880902]
[1743348856288,1.61,604.39,603.72,0.3312794]
[1743348856691,1.51685465,604.38,603.73,0.28806397]
[1743348856891,1.51685465,604.37,603.73,0.28806397]
[1743348857091,1.51685465,604.36,603.73,0.28806397]
[1743348857286,1.21101768,604.38,603.73,0.28806397]
[1743348857495,1.51645604,604.37,603.73,0.28806397]
[1743348857791,1.51645604,604.36,603.73,0.28806397]
[1743348857992,1.51642321,604.35,603.73,0.28806397]
[1743348858292,1.21101768,604.37,603.73,0.28806397]
[1743348858492,1.51605963,604.36,603.73,0.28806397]
[1743348858687,1.51605963,604.35,603.73,0.28806397]
[1743348858990,1.61,604.39,603.73,0.28806397]
[1743348859192,1.21035629,604.34,603.25,2.48215646]
[1743348859391,1.21035629,604.34,603.26,0.331532]
[1743348859893,1.21035629,604.34,603.26,0.61967349]
[1743348860089,1.61,604.39,603.26,0.61967349]
[1743348860291,1.51539603,604.38,603.26,0.61967349]
[1743348860596,1.20977116,604.38,603.26,0.61967349]
[1743348861191,1.20977116,604.37,603.26,0.61967349]
[1743348861890,1.61,604.39,603.26,0.61967349]
[1743348862188,1.51469839,604.38,603.26,0.331532]
[1743348862395,1.20923834,604.38,603.26,0.331532]
[1743348862592,1.20923834,604.38,603.26,0.61966633]
[1743348863087,1.622,604.4,603.26,0.61966633]
[1743348863892,2.722481,604.39,603.26,0.61966633]
[1743348864094,1.20863488,604.39,603.26,0.61966633]
[1743348864794,1.20863488,604.38,603.26,0.61966633]
[1743348865189,1.20863488,604.38,603.26,0.331532]
[1743348865389,1.622,604.4,603.26,0.331532]
[1743348865693,1.308,604.37,603.26,0.61967587]
[1743348866690,2.067,604.36,603.26,0.61967587]
[1743348867388,2.067,604.36,603.27,2.48215646]
[1743348867596,2.067,604.36,603.28,0.33152101]
[1743348868690,1.51328801,604.35,603.28,0.33152101]
[1743348868893,1.51328801,604.34,603.28,0.33152101]
[1743348869090,1.51328801,604.33,603.28,0.33152101]
[1743348869288,1.51328801,604.32,603.28,0.33152101]
[1743348869497,1.5128197,604.31,603.28,0.33152101]
[1743348869800,1.20809278,604.34,603.28,0.33152101]
[1743348870096,1.637,604.3,603.28,0.33152101]
[1743348873702,1.636,604.29,603.28,0.33152101]
[1743348877908,1.636,604.29,603.32,2.52433408]
[1743348878101,1.636,604.29,603.33,0.33149354]
[1743348879105,1.636,604.29,603.35,2.52433408]
[1743348880908,1.636,604.29,603.33,0.33149354]
[1743348885810,1.636,604.29,603.33,2.85582762]
[1743348887008,1.588,604.28,603.33,2.85582762]
[1743348887612,1.588,604.28,603.33,0.33149354]
[1743348890907,1.588,604.28,603.55,2.52433408]
[1743348891311,2.024,604.27,603.55,2.52433408]
[1743348892808,2.024,604.27,603.53,2.52433408]
[1743348894716,2.024,604.27,603.5,2.52433408]
[1743348894911,2.024,604.27,603.5,2.85573424]
[1743348895721,2.024,604.27,603.5,0.33140016]
[1743348897619,1.467,604.26,603.5,0.33140016]
[1743348899623,1.467,604.26,603.55,2.52433408]
[1743348901123,1.467,604.26,603.5,0.33140016]
[1743348904026,1.5170256,604.25,603.5,0.33140016]
[1743348904225,1.5170256,604.24,603.5,0.33140016]
[1743348904426,1.21112574,604.25,603.5,0.33140016]
[1743348904629,1.51700552,604.24,603.5,0.33140016]
[1743348904821,1.21112574,604.24,603.5,0.33140016]
[1743348905626,1.21112574,604.23,603.5,0.33140016]
[1743348906227,1.51694827,604.22,603.5,0.33140016]
[1743348906428,1.51694827,604.21,603.5,0.33140016]
[1743348906728,1.51694827,604.2,603.5,0.33140016]
[1743348906926,1.51684518,604.19,603.5,0.33140016]
[1743348907129,1.51684518,604.18,603.5,0.33140016]
[1743348907330,1.51684518,604.17,603.5,0.33140016]
[1743348907632,1.51684518,604.16,603.5,0.33140016]
[1743348907829,1.51684518,604.15,603.5,0.33140016]
[1743348908029,1.21088896,604.18,603.5,0.33140016]
[1743348908331,1.21088896,604.15,603.5,0.33140016]
[1743348909030,1.467,604.26,603.5,0.33140016]
[1743348909233,4.91398293,604.25,603.5,0.33140016]
[1743348909428,4.91398293,604.24,603.5,0.33140016]
[1743348909628,4.91398293,604.23,603.5,0.33140016]
[1743348909830,3.94401743,604.22,603.5,0.33140016]
[1743348910030,3.94401743,604.21,603.5,0.33140016]
[1743348910331,1.51692978,604.2,603.5,0.33140016]
[1743348910532,1.51692978,604.19,603.5,0.33140016]
[1743348910729,1.51692978,604.18,603.5,0.33140016]
[1743348910929,1.51692978,604.17,603.5,0.33140016]
[1743348911132,1.51692978,604.16,603.5,0.33140016]
[1743348911334,1.21092962,604.19,603.5,0.33140016]
[1743348911335,1.51692978,604.15,603.5,0.33140016]
[1743348911633,1.51692978,604.14,603.5,0.33140016]
[1743348911833,1.21092962,604.14,603.5,0.33140016]
[1743348912732,2.72771172,604.13,603.5,0.33140016]
[1743348913033,1.51684207,604.12,603.5,0.33140016]
[1743348913332,1.21092962,604.13,603.5,0.33140016]
[1743348913536,1.51683479,604.12,603.5,0.33140016]
[1743348913832,0.96985919,604.21,603.5,0.33140016]
[1743348914034,4.9140757,604.2,603.5,0.33140016]
[1743348914232,4.9140757,604.19,603.5,0.33140016]
[1743348914530,3.94421651,604.18,603.5,0.33140016]
[1743348914727,1.51700635,604.17,603.49,0.28817728]
[1743348915034,4.91373846,604.16,603.49,0.28817728]
[1743348915233,4.91373846,604.15,603.49,0.28817728]
[1743348915430,4.91373846,604.14,603.49,0.28817728]
[1743348915632,4.91373846,604.13,603.49,0.28817728]
[1743348915831,3.14907568,604.16,603.49,0.28817728]
[1743348915832,4.91373846,604.12,603.49,0.28817728]
[1743348916134,3.94324844,604.11,603.49,0.28817728]
[1743348916335,1.51700635,604.1,603.03,2.52433408]
[1743348916635,2.7281893,604.09,603.49,0.28826202]
[1743348916836,1.51700635,604.08,603.04,0.33165295]
[1743348917136,1.5161739,604.07,603.04,0.33165295]
[1743348917335,4.91014654,604.06,603.04,0.33165295]
[1743348917635,8.05647616,604.05,603.04,2.85598703]
[1743348917836,4.91014654,604.04,603.05,0.2883074]
[1743348918133,4.91014654,604.03,603.05,0.2883074]
[1743348918330,2.48531448,604.02,603.05,0.2883074]
[1743348918630,3.3301739,604.01,603.05,0.2883074]
[1743348918830,4.90635108,604.0,603.05,0.2883074]
[1743348919028,4.90633334,603.99,603.05,0.2883074]
[1743348919330,1.5161739,603.98,603.05,0.2883074]
[1743348919533,1.5161739,603.97,603.05,0.2883074]
[1743348919730,1.5161739,603.96,603.05,0.2883074]
[1743348919934,1.5161739,603.95,603.05,0.2883074]
[1743348920130,1.814,604.01,603.05,0.2883074]
[1743348920131,1.5161739,603.94,603.05,0.2883074]
[1743348920331,1.21118295,603.96,603.05,0.2883074]
[1743348920536,1.21118295,603.93,603.05,0.2883074]
[1743348921130,1.21118295,603.92,603.05,0.2883074]
[1743348921834,1.814,604.01,603.05,0.2883074]
[1743348922036,1.51156168,604.0,603.05,0.2883074]
[1743348922236,1.51156168,603.99,603.04,0.33165295]
[1743348922532,1.51156168,603.98,603.05,0.28832412]
[1743348922735,1.51156168,603.97,603.05,0.28832412]
[1743348923035,4.89624018,603.96,603.05,0.28832412]
[1743348923236,4.89624018,603.95,603.05,0.28832412]
[1743348923432,4.8956445,603.94,603.05,0.28832412]
[1743348923638,4.8932937,603.93,603.05,0.28832412]
[1743348923936,7.06381753,603.92,603.05,0.28832412]
[1743348924136,1.50988709,603.91,603.05,0.28832412]
[1743348924334,1.50988709,603.9,603.05,0.28832412]
[1743348924535,1.50988709,603.89,603.05,0.28832412]
[1743348924731,1.50988709,603.88,603.05,0.28832412]
[1743348925039,1.50926383,603.87,603.05,0.28832412]
[1743348925236,1.50926383,603.86,603.04,0.33165295]
[1743348925430,1.50926383,603.85,603.04,0.33165295]
[1743348925631,1.50926383,603.84,603.05,0.28835398]
[1743348925831,1.20636378,603.87,603.05,0.28835398]
[1743348926135,1.50853706,603.86,603.05,0.28835398]
[1743348926339,1.50834418,603.85,603.05,0.28835398]
[1743348926536,1.50834418,603.84,603.05,0.28835398]
[1743348926737,1.20636378,603.84,603.05,0.28835398]
[1743348926935,1.50758744,603.83,603.05,0.28835398]
[1743348927137,1.20636378,603.84,603.05,0.28835398]
[1743348927337,1.50748352,603.83,603.05,0.28835398]
[1743348927533,1.50702945,603.82,603.05,0.28835398]
[1743348927737,1.50702945,603.81,603.05,0.28835398]
[1743348927933,1.50702945,603.8,603.05,0.28835398]
[1743348928138,1.50702945,603.79,603.05,0.28835398]
[1743348928339,1.50702945,603.78,603.04,0.33165295]
[1743348928540,1.50702945,603.77,603.05,0.28836712]
[1743348928741,1.50702945,603.76,603.05,0.28836712]
[1743348929040,1.20323388,603.78,603.05,0.28836712]
[1743348929238,1.50618417,603.77,603.05,0.28836712]
[1743348929443,1.50618417,603.76,603.05,0.28836712]
[1743348929642,1.50618417,603.75,603.05,0.28836712]
[1743348929844,3.37237728,603.87,603.05,0.28836712]
[1743348930042,1.20225153,603.75,603.05,0.28836712]
[1743348930245,1.50572773,603.74,603.05,0.28836712]